[Event "Kupreichik Memorial Rapid 2019"]
[Site "Minsk"]
[Date "2019.08.15"]
[Round "2.36"]
[White "Sadovnikov, Konstantin"]
[Black "Kasperovich, Mikhail"]
[Result "1-0"]
[ECO "C02"]
[WhiteElo "1798"]
[BlackElo "1324"]
[Annotator "NA"]
[PlyCount "49"]
[EventDate "2019.08.15"]
[EventType "swiss"]
[EventCountry "BLR"]
[SourceTitle "playchess.com"]
[Source "ChessBase"]
[SourceQuality "1"]
[TimeControl "900+10"]

1. e4 {[%emt 0:00:00]} e6 {[%emt 0:00:00]} 2. d4 {[%emt 0:00:00]} d5 {[%emt 0:00:00]} 3. e5 {[%emt 0:00:00]} c5 {[%emt 0:00:00]} 4. c3 {[%emt 0:00:00]} Nc6 {[%emt 0:00:00]} 5. Nf3 {[%emt 0:00:00]} Qb6 {[%emt 0:00:00]} 6. Be2 {[%emt 0:00:00]} Nge7 {[%emt 0:00:02]} 7. Na3 {[%emt 0:00:00]} Nf5 {[%emt 0:00:13]} 8. Nc2 {[%emt 0:00:00]} Be7 {[%emt 0:01:12]} 9. O-O {[%emt 0:00:34]} Bd7 {[%emt 0:01:27]} 10. a3 {[%emt 0:01:15]} a5 {[%emt 0:00:08]} 11. Rb1 {[%emt 0:00:31]} cxd4 {[%emt 0:01:16]} 12. cxd4 {[%emt 0:00:43]} Rc8 {[%emt 0:00:18]} 13. g4 {[%emt 0:00:36]} Nh4 {[%emt 0:00:17]} 14. Nxh4 {[%emt 0:00:31]} Bxh4 {[%emt 0:00:02]} 15. Be3 {[%emt 0:02:25]} Be7 {[%emt 0:00:25]} 16. f4 {[%emt 0:00:34]} Qb3 {[%emt 0:00:12]} 17. Qd3 {[%emt 0:00:39]} Qc4 {[%emt 0:02:49]} 18. Rfc1 {[%emt 0:00:55]} Na7 {[%emt 0:00:29]} 19. Qxc4 {[%emt 0:00:23]} dxc4 {[%emt 0:00:01]} 20. d5 {[%emt 0:00:16]} Bc5 {[%emt 0:00:25]} 21. Bxc4 {[%emt 0:02:07]} b5 {[%emt 0:01:39]} 22. dxe6 {[%emt 0:00:24]} fxe6 {[%emt 0:00:48]} 23. Bf1 {[%emt 0:00:02]} Rf8 {[%emt 0:00:13]} 24. Nd4 {[%emt 0:03:35]} Bc6 {[%emt 0:03:56]} 25. Rxc5 {[%emt 0:00:26]} 1-0

[Event "Kupreichik Memorial Rapid 2019"]
[Site "Minsk"]
[Date "2019.08.15"]
[Round "2.37"]
[White "Ustiugov, Boris"]
[Black "Shakhadanau, Henadzi"]
[Result "0-1"]
[ECO "E30"]
[WhiteElo "1567"]
[BlackElo "1868"]
[Annotator "NA"]
[PlyCount "88"]
[EventDate "2019.08.15"]
[EventType "swiss"]
[EventCountry "BLR"]
[SourceTitle "playchess.com"]
[Source "ChessBase"]
[SourceQuality "1"]
[TimeControl "900+10"]

1. d4 {[%emt 0:00:00]} Nf6 {[%emt 0:00:00]} 2. c4 {[%emt 0:00:00]} e6 {[%emt 0:00:00]} 3. Nc3 {[%emt 0:00:05]} Bb4 {[%emt 0:00:00]} 4. Bg5 {[%emt 0:00:05]} c5 {[%emt 0:00:03]} 5. dxc5 {[%emt 0:00:38]} Qa5 {[%emt 0:00:15]} 6. Bxf6 {[%emt 0:00:03]} gxf6 {[%emt 0:00:01]} 7. Qc1 {[%emt 0:00:18]} Bxc3+ {[%emt 0:00:20]} 8. bxc3 {[%emt 0:00:20]} Na6 {[%emt 0:00:28]} 9. e4 {[%emt 0:01:17]} Nxc5 {[%emt 0:00:09]} 10. Qc2 {[%emt 0:01:09]} Nxe4 {[%emt 0:00:53]} 11. Rc1 {[%emt 0:00:02]} f5 {[%emt 0:00:18]} 12. Bd3 {[%emt 0:00:32]} Nc5 {[%emt 0:00:04]} 13. Be2 {[%emt 0:00:24]} d6 {[%emt 0:00:54]} 14. Nf3 {[%emt 0:00:47]} Bd7 {[%emt 0:01:02]} 15. Nd4 {[%emt 0:00:55]} Ke7 {[%emt 0:01:02]} 16. O-O {[%emt 0:00:51]} Ba4 {[%emt 0:00:46]} 17. Qb2 {[%emt 0:01:23]} a6 {[%emt 0:00:20]} 18. Qb4 {[%emt 0:00:55]} Qc7 {[%emt 0:00:10]} 19. Nb3 {[%emt 0:00:38]} Bd7 {[%emt 0:01:03]} 20. Nd4 {[%emt 0:00:51]} Rab8 {[%emt 0:00:41]} 21. Qb2 {[%emt 0:00:11]} e5 {[%emt 0:00:20]} 22. Nf3 {[%emt 0:00:44]} Rhg8 {[%emt 0:00:21]} 23. Rfe1 {[%emt 0:00:56]} Be6 {[%emt 0:00:25]} 24. Rcd1 {[%emt 0:00:26]} Ne4 {[%emt 0:00:27]} 25. Nd2 {[%emt 0:00:48]} Nc5 {[%emt 0:01:18]} 26. Nb3 {[%emt 0:00:29]} Qc6 {[%emt 0:00:52]} 27. f3 {[%emt 0:00:48]} Rg6 {[%emt 0:00:55]} 28. Nxc5 {[%emt 0:00:14]} Qxc5+ {[%emt 0:00:01]} 29. Kh1 {[%emt 0:00:08]} Qf2 {[%emt 0:01:10]} 30. Rg1 {[%emt 0:01:21]} Bxc4 {[%emt 0:00:29]} 31. Rd2 {[%emt 0:00:20]} Bxe2 {[%emt 0:00:21]} 32. Rxe2 {[%emt 0:00:03]} Qc5 {[%emt 0:00:04]} 33. Qc2 {[%emt 0:00:45]} f4 {[%emt 0:00:22]} 34. Qf5 {[%emt 0:00:27]} b5 {[%emt 0:01:18]} 35. Qxf4 {[%emt 0:00:26]} Kf8 {[%emt 0:00:32]} 36. Qh4 {[%emt 0:00:20]} Kg7 {[%emt 0:00:17]} 37. f4 {[%emt 0:00:14]} Qc4 {[%emt 0:00:23]} 38. Rf2 {[%emt 0:00:28]} Re8 {[%emt 0:00:32]} 39. Rgf1 {[%emt 0:00:43]} Qe4 {[%emt 0:00:17]} 40. Qh3 {[%emt 0:00:02]} exf4 {[%emt 0:00:50]} 41. Rf3 {[%emt 0:00:28]} Qc4 {[%emt 0:00:39]} 42. Qh4 {[%emt 0:00:07]} Re4 {[%emt 0:00:22]} 43. Rxf4 {[%emt 0:00:16]} Qxf1+ {[%emt 0:00:10]} 44. Rxf1 {[%emt 0:00:04]} Rxh4 {[%emt 0:00:01]} 0-1

[Event "Kupreichik Memorial Rapid 2019"]
[Site "Minsk"]
[Date "2019.08.15"]
[Round "2.38"]
[White "Tkachou, Viktar"]
[Black "Lavrishchev, Matvei"]
[Result "1-0"]
[ECO "A13"]
[WhiteElo "1791"]
[BlackElo "1175"]
[Annotator "NA"]
[PlyCount "143"]
[EventDate "2019.08.15"]
[EventType "swiss"]
[EventCountry "BLR"]
[SourceTitle "playchess.com"]
[Source "ChessBase"]
[SourceQuality "1"]
[TimeControl "900+10"]

1. Nf3 {[%emt 0:00:00]} e6 {[%emt 0:00:00]} 2. c4 {[%emt 0:00:00]} d5 {[%emt 0:00:00]} 3. cxd5 {[%emt 0:00:00]} exd5 {[%emt 0:00:00]} 4. e3 {[%emt 0:00:01]} c6 {[%emt 0:00:00]} 5. Be2 {[%emt 0:00:04]} Nf6 {[%emt 0:00:00]} 6. b3 {[%emt 0:00:06]} Bd6 {[%emt 0:00:00]} 7. Bb2 {[%emt 0:00:04]} Nbd7 {[%emt 0:00:00]} 8. O-O {[%emt 0:00:05]} O-O {[%emt 0:00:00]} 9. d3 {[%emt 0:00:06]} b6 {[%emt 0:00:01]} 10. Nbd2 {[%emt 0:00:08]} Bb7 {[%emt 0:00:01]} 11. a3 {[%emt 0:00:06]} Rc8 {[%emt 0:00:07]} 12. Rc1 {[%emt 0:00:22]} Qe7 {[%emt 0:00:09]} 13. Nd4 {[%emt 0:00:59]} Be5 {[%emt 0:01:26]} 14. N2f3 {[%emt 0:01:10]} c5 {[%emt 0:01:18]} 15. Nf5 {[%emt 0:01:29]} Qe6 {[%emt 0:00:03]} 16. Nxe5 {[%emt 0:00:16]} Nxe5 {[%emt 0:00:04]} 17. Ng3 {[%emt 0:00:12]} Ned7 {[%emt 0:01:33]} 18. Bf3 {[%emt 0:00:32]} Ne5 {[%emt 0:00:38]} 19. Bxe5 {[%emt 0:00:39]} Qxe5 {[%emt 0:00:03]} 20. Ne2 {[%emt 0:00:36]} Ba8 {[%emt 0:00:13]} 21. d4 {[%emt 0:00:23]} cxd4 {[%emt 0:00:14]} 22. Qxd4 {[%emt 0:00:20]} Qxd4 {[%emt 0:00:11]} 23. Nxd4 {[%emt 0:00:04]} Ne4 {[%emt 0:01:04]} 24. Nf5 {[%emt 0:00:59]} Rxc1 {[%emt 0:00:44]} 25. Rxc1 {[%emt 0:00:03]} Nd2 {[%emt 0:00:46]} 26. b4 {[%emt 0:03:11]} Nxf3+ {[%emt 0:00:02]} 27. gxf3 {[%emt 0:00:01]} Rb8 {[%emt 0:02:14]} 28. Rc7 {[%emt 0:00:20]} a5 {[%emt 0:01:07]} 29. Nd6 {[%emt 0:01:16]} f6 {[%emt 0:01:19]} 30. Kf1 {[%emt 0:01:22]} axb4 {[%emt 0:00:06]} 31. axb4 {[%emt 0:00:01]} Rd8 {[%emt 0:00:57]} 32. Rc8 {[%emt 0:00:08]} Rxc8 33. Nxc8 {[%emt 0:00:02]} b5 {[%emt 0:00:18]} 34. Na7 {[%emt 0:00:03]} Bb7 {[%emt 0:00:08]} 35. Ke1 {[%emt 0:00:20]} Ba6 {[%emt 0:00:04]} 36. Kd2 {[%emt 0:00:32]} Kf7 {[%emt 0:00:03]} 37. Nc6 {[%emt 0:00:40]} Ke6 {[%emt 0:00:47]} 38. Nd4+ {[%emt 0:00:03]} Ke5 {[%emt 0:00:51]} 39. Kd3 {[%emt 0:00:06]} g5 {[%emt 0:00:28]} 40. Nb3 {[%emt 0:00:25]} f5 {[%emt 0:00:22]} 41. Nc5 {[%emt 0:00:17]} Bc8 {[%emt 0:00:05]} 42. Nb3 {[%emt 0:00:14]} f4 {[%emt 0:00:28]} 43. Nd4 {[%emt 0:00:05]} fxe3 {[%emt 0:00:19]} 44. fxe3 {[%emt 0:00:06]} Bd7 {[%emt 0:00:06]} 45. Ne2 {[%emt 0:00:26]} Bf5+ {[%emt 0:00:13]} 46. Kd2 {[%emt 0:00:03]} h6 {[%emt 0:00:15]} 47. Ng3 {[%emt 0:00:20]} g4 {[%emt 0:00:20]} 48. f4+ {[%emt 0:00:38]} Ke6 {[%emt 0:00:05]} 49. Kc3 {[%emt 0:00:05]} Kd6 {[%emt 0:00:14]} 50. Nxf5+ {[%emt 0:00:04]} Ke6 {[%emt 0:00:02]} 51. Nxh6 {[%emt 0:00:03]} Kf6 {[%emt 0:00:06]} 52. Nxg4+ {[%emt 0:00:03]} Kf5 53. Kd4 {[%emt 0:00:09]} Kxg4 {[%emt 0:00:04]} 54. Kxd5 {[%emt 0:00:02]} Kf5 {[%emt 0:00:01]} 55. h4 {[%emt 0:00:05]} Kg4 {[%emt 0:00:01]} 56. Ke6 {[%emt 0:00:03]} Kxh4 {[%emt 0:00:02]} 57. f5 {[%emt 0:00:01]} Kg4 {[%emt 0:00:01]} 58. f6 {[%emt 0:00:02]} Kf3 {[%emt 0:00:01]} 59. f7 {[%emt 0:00:02]} Kxe3 {[%emt 0:00:02]} 60. f8=Q {[%emt 0:00:04]} Kd4 {[%emt 0:00:01]} 61. Qc5+ {[%emt 0:00:02]} Kd3 {[%emt 0:00:03]} 62. Qxb5+ {[%emt 0:00:02]} Kd4 {[%emt 0:00:01]} 63. Qc5+ {[%emt 0:00:02]} Kd3 {[%emt 0:00:01]} 64. Ke5 {[%emt 0:00:03]} Kd2 {[%emt 0:00:02]} 65. Qc4 {[%emt 0:00:03]} Ke3 {[%emt 0:00:05]} 66. Qd4+ {[%emt 0:00:02]} Kf3 {[%emt 0:00:02]} 67. Qe4+ {[%emt 0:00:02]} Kg3 {[%emt 0:00:01]} 68. Qf4+ {[%emt 0:00:02]} Kh3 {[%emt 0:00:01]} 69. Qg5 {[%emt 0:00:01]} Kh2 {[%emt 0:00:02]} 70. Kf4 {[%emt 0:00:02]} Kh1 71. Kf3 {[%emt 0:00:03]} Kh2 {[%emt 0:00:06]} 72. Qg2# 1-0

[Event "Kupreichik Memorial Rapid 2019"]
[Site "Minsk"]
[Date "2019.08.15"]
[Round "2.39"]
[White "Laptev, Viktor"]
[Black "Zvereva, Margarita"]
[Result "0-1"]
[ECO "B90"]
[WhiteElo "1424"]
[BlackElo "1678"]
[Annotator "NA"]
[PlyCount "44"]
[EventDate "2019.08.15"]
[EventType "swiss"]
[EventCountry "BLR"]
[SourceTitle "playchess.com"]
[Source "ChessBase"]
[SourceQuality "1"]
[TimeControl "900+10"]

1. e4 {[%emt 0:00:00]} c5 {[%emt 0:00:00]} 2. Nf3 {[%emt 0:00:00]} d6 {[%emt 0:00:00]} 3. d4 {[%emt 0:00:00]} cxd4 {[%emt 0:00:00]} 4. Nxd4 {[%emt 0:00:01]} Nf6 {[%emt 0:00:00]} 5. Nc3 {[%emt 0:00:02]} a6 {[%emt 0:00:00]} 6. f3 {[%emt 0:00:08]} e5 {[%emt 0:00:20]} 7. Nb3 {[%emt 0:00:09]} Be6 {[%emt 0:00:19]} 8. Be3 {[%emt 0:00:05]} Be7 {[%emt 0:00:22]} 9. Qd2 {[%emt 0:00:11]} Nbd7 {[%emt 0:00:33]} 10. O-O-O {[%emt 0:00:06]} O-O {[%emt 0:00:19]} 11. g4 {[%emt 0:00:01]} b5 {[%emt 0:01:07]} 12. g5 {[%emt 0:00:09]} Nh5 {[%emt 0:00:46]} 13. Ne2 {[%emt 0:00:19]} Nb6 {[%emt 0:01:40]} 14. Ng3 {[%emt 0:00:09]} Nf4 {[%emt 0:00:41]} 15. h4 {[%emt 0:00:02]} Nc4 {[%emt 0:01:31]} 16. Bxc4 {[%emt 0:00:05]} bxc4 {[%emt 0:00:27]} 17. Na5 {[%emt 0:00:18]} Rc8 {[%emt 0:02:13]} 18. Qc3 {[%emt 0:01:41]} Ng2 {[%emt 0:02:48]} 19. Nb7 {[%emt 0:01:31]} Qc7 {[%emt 0:00:47]} 20. Nxd6 {[%emt 0:00:35]} Bxd6 {[%emt 0:00:19]} 21. Bf2 {[%emt 0:00:14]} Rb8 {[%emt 0:00:28]} 22. Nf5 {[%emt 0:00:04]} Bb4 {[%emt 0:01:12]} 0-1

[Event "Kupreichik Memorial Rapid 2019"]
[Site "Minsk"]
[Date "2019.08.15"]
[Round "3.5"]
[White "Pakhomov, Alexey"]
[Black "Sychev, Klementy"]
[Result "1/2-1/2"]
[ECO "D91"]
[WhiteElo "2315"]
[BlackElo "2579"]
[Annotator "ChessBase"]
[PlyCount "146"]
[EventDate "2019.08.15"]
[EventType "swiss"]
[EventCountry "BLR"]
[SourceTitle "playchess.com"]
[Source "ChessBase"]
[SourceQuality "1"]
[TimeControl "900+10"]

1. d4 {[%emt 0:00:00]} Nf6 {[%emt 0:00:00]} 2. c4 {[%emt 0:00:29]} g6 {[%emt 0:00:17]} 3. Nc3 {[%emt 0:00:01]} d5 {[%emt 0:00:02]} 4. Nf3 {[%emt 0:01:27]} Bg7 {[%emt 0:00:04]} 5. Bg5 {[%emt 0:00:11]} Ne4 {[%emt 0:00:02]} 6. cxd5 {[%emt 0:00:01]} Nxg5 {[%emt 0:00:04]} 7. Nxg5 {[%emt 0:00:00]} e6 {[%emt 0:00:02]} 8. Qd2 {[%emt 0:00:01]} exd5 {[%emt 0:00:06]} 9. Qe3+ {[%emt 0:00:01]} Kf8 {[%emt 0:00:01]} 10. Qf4 {[%emt 0:00:01]} Bf6 {[%emt 0:00:06]} 11. h4 {[%emt 0:00:12]} h6 {[%emt 0:00:09]} 12. Nf3 {[%emt 0:00:01]} Kg7 {[%emt 0:00:22]} 13. e3 {[%emt 0:00:06]} c6 {[%emt 0:00:07]} 14. Bd3 {[%emt 0:00:12]} Be6 {[%emt 0:00:04]} 15. g4 {[%emt 0:00:20]} Nd7 {[%emt 0:00:51]} 16. Qg3 {[%emt 0:00:01]} Qb8 {[%emt 0:02:18]} 17. Qg2 {[%emt 0:00:02]} c5 {[%emt 0:00:05]} 18. g5 {[%emt 0:00:59]} hxg5 {[%emt 0:00:31]} 19. hxg5 {[%emt 0:00:03]} Be7 {[%emt 0:00:11]} 20. O-O-O {[%emt 0:00:16]} Qc7 {[%emt 0:00:44]} 21. Kb1 {[%emt 0:00:15]} c4 {[%emt 0:03:03]} 22. Bc2 {[%emt 0:00:13]} b5 {[%emt 0:00:32]} 23. Ne2 {[%emt 0:00:28]} Bd6 {[%emt 0:00:07]} 24. Rh6 {[%emt 0:00:09]} b4 {[%emt 0:03:51]} 25. Nh4 {[%emt 0:01:02]} Rag8 {[%emt 0:02:20]} 26. f4 {[%emt 0:06:07]} Rxh6 {[%emt 0:00:36]} 27. gxh6+ {[%emt 0:00:01]} Kh8 {[%emt 0:00:02]} 28. Rg1 {[%emt 0:00:49]} Qd8 {[%emt 0:00:23]} 29. Nf3 {[%emt 0:00:10]} Qf6 {[%emt 0:00:02]} 30. Ng3 {[%emt 0:00:24]} b3 {[%emt 0:00:31]} 31. axb3 cxb3 {[%emt 0:00:01]} 32. Bd3 {[%emt 0:00:04]} Qd8 {[%emt 0:00:44]} 33. Ne2 {[%emt 0:01:24]} Nf6 {[%emt 0:00:31]} 34. Ng5 {[%emt 0:00:29]} Qe8 {[%emt 0:00:05]} 35. Nc3 {[%emt 0:00:42]} Bb4 {[%emt 0:00:11]} 36. Nxe6 {[%emt 0:00:31]} Qxe6 {[%emt 0:00:07]} 37. Qg5 {[%emt 0:00:21]} Bxc3 {[%emt 0:00:18]} 38. bxc3 {[%emt 0:00:05]} Qc6 {[%emt 0:01:17]} 39. Rc1 {[%emt 0:01:52]} Kh7 {[%emt 0:00:12]} 40. f5 {[%emt 0:00:14]} Qa4 {[%emt 0:00:17]} 41. fxg6+ {[%emt 0:00:15]} Rxg6 {[%emt 0:00:16]} 42. Bxg6+ fxg6 {[%emt 0:00:01]} 43. Qg2 {[%emt 0:00:51]} Ne4 {[%emt 0:00:02]} 44. Qb2 {[%emt 0:00:47]} Qc4 {[%emt 0:00:02]} 45. Qa3 {[%emt 0:00:14]} Qc7 {[%emt 0:00:27]} 46. Ka1 {[%emt 0:00:09]} Nd2 {[%emt 0:00:03]} 47. Qb4 {[%emt 0:00:22]} a5 {[%emt 0:00:07]} 48. Qc5 {[%emt 0:00:04]} Qd7 {[%emt 0:00:11]} 49. Kb2 {[%emt 0:00:11]} a4 {[%emt 0:00:10]} 50. Rg1 {[%emt 0:00:15]} Nc4+ {[%emt 0:00:09]} 51. Ka1 {[%emt 0:00:01]} a3 {[%emt 0:00:15]} 52. e4 {[%emt 0:00:13]} a2 {[%emt 0:00:22]} 53. Qb4 {[%emt 0:00:15]} b2+ {[%emt 0:00:07]} 54. Kxa2 {[%emt 0:00:10]} Qa7+ {[%emt 0:00:08]} 55. Kb3 {[%emt 0:00:03]} Nd2+ {[%emt 0:00:21]} 56. Kxb2 {[%emt 0:00:11]} Nc4+ {[%emt 0:00:09]} 57. Kb3 {[%emt 0:00:01]} Nd2+ {[%emt 0:00:03]} 58. Kc2 {[%emt 0:00:05]} Nxe4 {[%emt 0:00:02]} 59. Rb1 {[%emt 0:00:06]} Qa2+ {[%emt 0:00:13]} 60. Qb2 {[%emt 0:00:15]} Qc4 {[%emt 0:00:14]} 61. Qb7+ {[%emt 0:00:06]} Kxh6 {[%emt 0:00:01]} 62. Rh1+ {[%emt 0:00:01]} Kg5 {[%emt 0:00:02]} 63. Qe7+ {[%emt 0:00:01]} Kf5 {[%emt 0:00:16]} 64. Qf7+ {[%emt 0:00:22]} Nf6 {[%emt 0:00:05]} 65. Qe7 {[%emt 0:00:25]} Qa2+ {[%emt 0:00:07]} 66. Kd3 {[%emt 0:00:05]} Qc4+ {[%emt 0:00:18]} 67. Kc2 {[%emt 0:00:04]} Qa2+ {[%emt 0:00:19]} 68. Kd3 {[%emt 0:00:02]} Qa6+ {[%emt 0:00:07]} 69. Kc2 {[%emt 0:00:06]} Qa2+ {[%emt 0:00:09]} 70. Kd3 {[%emt 0:00:02]} Qc4+ {[%emt 0:00:11]} 71. Kc2 {[%emt 0:00:05]} Qa2+ {[%emt 0:00:12]} 72. Kd3 {[%emt 0:00:02]} Qc4+ {[%emt 0:00:01]} 73. Kc2 {[%emt 0:00:01]} Qa2+ {[%emt 0:00:17]} 1/2-1/2

[Event "Kupreichik Memorial Rapid 2019"]
[Site "Minsk"]
[Date "2019.08.15"]
[Round "3.12"]
[White "Veremeichik, Vladimir"]
[Black "Kuleshov, Konstantin"]
[Result "0-1"]
[ECO "D84"]
[WhiteElo "2282"]
[BlackElo "2076"]
[Annotator "NA"]
[PlyCount "70"]
[EventDate "2019.08.15"]
[EventType "swiss"]
[EventCountry "BLR"]
[SourceTitle "playchess.com"]
[Source "ChessBase"]
[SourceQuality "1"]
[TimeControl "900+10"]

1. d4 {[%emt 0:00:00]} Nf6 {[%emt 0:00:00]} 2. c4 {[%emt 0:00:00]} g6 {[%emt 0:00:00]} 3. Nc3 {[%emt 0:00:00]} d5 {[%emt 0:00:00]} 4. Bf4 {[%emt 0:00:00]} Bg7 {[%emt 0:00:01]} 5. e3 {[%emt 0:00:00]} O-O {[%emt 0:00:04]} 6. cxd5 {[%emt 0:00:00]} Nxd5 {[%emt 0:00:02]} 7. Nxd5 {[%emt 0:00:00]} Qxd5 {[%emt 0:00:04]} 8. Bxc7 {[%emt 0:00:00]} Nc6 {[%emt 0:00:11]} 9. Ne2 {[%emt 0:00:03]} e5 {[%emt 0:01:02]} 10. dxe5 {[%emt 0:00:03]} Qb5 {[%emt 0:00:59]} 11. f4 {[%emt 0:00:02]} Qxb2 {[%emt 0:00:06]} 12. Rb1 {[%emt 0:00:14]} Qxa2 {[%emt 0:00:09]} 13. Nc3 {[%emt 0:00:02]} Qe6 {[%emt 0:00:12]} 14. Nd5 {[%emt 0:00:43]} f6 {[%emt 0:00:35]} 15. Bc4 {[%emt 0:00:06]} Kh8 {[%emt 0:00:14]} 16. Nb6 {[%emt 0:00:04]} Qf5 {[%emt 0:00:23]} 17. Nxa8 {[%emt 0:00:07]} fxe5 {[%emt 0:00:03]} 18. O-O {[%emt 0:00:18]} Qe4 {[%emt 0:00:11]} 19. Qd3 {[%emt 0:00:10]} Bf5 {[%emt 0:00:02]} 20. Qxe4 {[%emt 0:00:08]} Bxe4 {[%emt 0:00:02]} 21. Rxb7 {[%emt 0:00:26]} Rxa8 {[%emt 0:00:02]} 22. fxe5 {[%emt 0:00:40]} Bxe5 {[%emt 0:01:56]} 23. Bxe5+ {[%emt 0:00:20]} Nxe5 {[%emt 0:00:02]} 24. Re7 {[%emt 0:00:02]} Nxc4 {[%emt 0:00:08]} 25. Rxe4 {[%emt 0:00:13]} Nd2 {[%emt 0:00:01]} 26. Ra4 {[%emt 0:00:02]} Nxf1 27. Kxf1 {[%emt 0:00:01]} a5 {[%emt 0:00:03]} 28. Ke2 {[%emt 0:00:01]} Kg7 {[%emt 0:00:00]} 29. Kd3 {[%emt 0:00:01]} Kf6 {[%emt 0:00:01]} 30. Kc4 {[%emt 0:00:00]} Ke5 {[%emt 0:00:01]} 31. Kb5 {[%emt 0:00:01]} Rb8+ {[%emt 0:00:02]} 32. Kc6 {[%emt 0:00:01]} Rb2 {[%emt 0:00:06]} 33. Rh4 {[%emt 0:00:14]} h5 {[%emt 0:00:32]} 34. g3 {[%emt 0:00:06]} Rb4 {[%emt 0:00:05]} 35. Rh3 {[%emt 0:00:31]} Rg4 {[%emt 0:00:03]} 0-1

[Event "Kupreichik Memorial Rapid 2019"]
[Site "Minsk"]
[Date "2019.08.15"]
[Round "3.13"]
[White "Kameko, Aleksandr"]
[Black "Zverev, Lev"]
[Result "1-0"]
[ECO "C77"]
[WhiteElo "2045"]
[BlackElo "1881"]
[Annotator "NA"]
[PlyCount "85"]
[EventDate "2019.08.15"]
[EventType "swiss"]
[EventCountry "BLR"]
[SourceTitle "playchess.com"]
[Source "ChessBase"]
[SourceQuality "1"]
[TimeControl "900+10"]

1. e4 {[%emt 0:00:00]} e5 {[%emt 0:00:00]} 2. Nf3 {[%emt 0:00:00]} Nc6 {[%emt 0:00:00]} 3. Bb5 {[%emt 0:00:00]} a6 {[%emt 0:00:00]} 4. Ba4 {[%emt 0:00:00]} Nf6 {[%emt 0:00:00]} 5. d3 {[%emt 0:00:00]} b5 {[%emt 0:00:00]} 6. Bb3 {[%emt 0:00:00]} Be7 {[%emt 0:00:00]} 7. O-O {[%emt 0:00:04]} O-O {[%emt 0:00:00]} 8. h3 {[%emt 0:00:15]} d6 {[%emt 0:00:01]} 9. c3 {[%emt 0:00:02]} Na5 {[%emt 0:00:01]} 10. Bc2 {[%emt 0:00:01]} c5 {[%emt 0:00:01]} 11. Re1 {[%emt 0:00:03]} h6 {[%emt 0:00:10]} 12. Nbd2 {[%emt 0:00:01]} Nc6 {[%emt 0:00:07]} 13. Nf1 {[%emt 0:00:03]} Be6 {[%emt 0:00:01]} 14. Ng3 {[%emt 0:00:17]} Qc7 {[%emt 0:00:02]} 15. Qe2 {[%emt 0:00:28]} Rfe8 {[%emt 0:00:22]} 16. Bb3 {[%emt 0:00:43]} Rad8 {[%emt 0:00:29]} 17. Bxe6 {[%emt 0:00:08]} fxe6 {[%emt 0:00:03]} 18. Nh2 {[%emt 0:00:57]} d5 {[%emt 0:00:08]} 19. Ng4 {[%emt 0:00:41]} Nh7 {[%emt 0:00:09]} 20. Nh5 {[%emt 0:01:14]} Bg5 {[%emt 0:00:29]} 21. Bxg5 {[%emt 0:00:32]} Nxg5 {[%emt 0:00:03]} 22. h4 {[%emt 0:00:16]} Nh7 {[%emt 0:00:04]} 23. Ne3 {[%emt 0:01:52]} Qf7 {[%emt 0:00:34]} 24. exd5 {[%emt 0:00:47]} exd5 {[%emt 0:00:03]} 25. Qg4 {[%emt 0:00:09]} Rf8 {[%emt 0:00:38]} 26. Nf5 {[%emt 0:00:57]} Kh8 {[%emt 0:00:50]} 27. Re2 {[%emt 0:00:55]} Rg8 {[%emt 0:00:55]} 28. Rae1 {[%emt 0:01:20]} g6 {[%emt 0:00:30]} 29. Nxh6 {[%emt 0:00:32]} Qf8 {[%emt 0:00:12]} 30. Nxg8 {[%emt 0:00:07]} gxh5 {[%emt 0:00:02]} 31. Qxh5 {[%emt 0:00:17]} Qxg8 {[%emt 0:00:03]} 32. Re3 {[%emt 0:00:14]} Qe6 {[%emt 0:00:24]} 33. f4 {[%emt 0:00:55]} d4 {[%emt 0:00:11]} 34. cxd4 {[%emt 0:00:13]} cxd4 {[%emt 0:00:26]} 35. Re4 {[%emt 0:00:05]} Qxa2 {[%emt 0:00:13]} 36. fxe5 {[%emt 0:00:07]} Qe6 {[%emt 0:00:08]} 37. Rf1 {[%emt 0:00:21]} Rg8 {[%emt 0:02:53]} 38. Rf6 {[%emt 0:00:40]} Qc8 {[%emt 0:00:49]} 39. Rf7 {[%emt 0:01:24]} Rg7 {[%emt 0:00:02]} 40. e6 {[%emt 0:00:19]} Qe8 {[%emt 0:02:47]} 41. Rg4 {[%emt 0:01:19]} Rxf7 {[%emt 0:04:07]} 42. exf7 {[%emt 0:00:02]} Qf8 {[%emt 0:00:24]} 43. Rg8+ {[%emt 0:00:07]} 1-0

[Event "Kupreichik Memorial Rapid 2019"]
[Site "Minsk"]
[Date "2019.08.15"]
[Round "3.17"]
[White "Masjuk, Vladimir"]
[Black "Mikhailovsky, Vladimir"]
[Result "0-1"]
[ECO "B01"]
[WhiteElo "1900"]
[BlackElo "2209"]
[Annotator "NA"]
[PlyCount "65"]
[EventDate "2019.08.15"]
[EventType "swiss"]
[EventCountry "BLR"]
[SourceTitle "playchess.com"]
[Source "ChessBase"]
[SourceQuality "1"]
[TimeControl "900+10"]

1. e4 {[%emt 0:00:00]} d5 {[%emt 0:00:07]} 2. exd5 {[%emt 0:00:00]} Qxd5 {[%emt 0:00:03]} 3. Nc3 {[%emt 0:00:00]} Qa5 {[%emt 0:00:04]} 4. d4 {[%emt 0:00:03]} Nf6 {[%emt 0:00:02]} 5. Nf3 {[%emt 0:00:03]} Ne4 {[%emt 0:00:33]} 6. Bd3 {[%emt 0:00:06]} Nxc3 {[%emt 0:00:05]} 7. bxc3 {[%emt 0:00:02]} Bg4 {[%emt 0:00:59]} 8. Bd2 {[%emt 0:00:04]} Nd7 {[%emt 0:00:10]} 9. O-O {[%emt 0:00:13]} e6 {[%emt 0:01:01]} 10. Be4 {[%emt 0:00:19]} c6 {[%emt 0:00:16]} 11. Rb1 {[%emt 0:00:05]} Qc7 {[%emt 0:00:41]} 12. h3 {[%emt 0:00:05]} Bh5 {[%emt 0:00:03]} 13. Re1 {[%emt 0:00:21]} Bd6 {[%emt 0:00:31]} 14. c4 {[%emt 0:00:09]} Nf6 {[%emt 0:01:19]} 15. Bd3 {[%emt 0:01:06]} c5 {[%emt 0:00:10]} 16. d5 {[%emt 0:00:19]} e5 {[%emt 0:03:24]} 17. Bc3 {[%emt 0:01:18]} Nd7 {[%emt 0:02:27]} 18. Bf5 {[%emt 0:00:59]} O-O {[%emt 0:02:42]} 19. Bxd7 {[%emt 0:01:03]} Qxd7 {[%emt 0:00:05]} 20. Bxe5 {[%emt 0:00:06]} b6 {[%emt 0:00:07]} 21. Qd3 {[%emt 0:01:02]} Rfe8 {[%emt 0:00:33]} 22. Bb2 {[%emt 0:01:09]} Bg6 {[%emt 0:02:05]} 23. Qc3 {[%emt 0:00:06]} f6 {[%emt 0:00:01]} 24. Qb3 {[%emt 0:03:02]} Qf5 {[%emt 0:00:21]} 25. Rbc1 {[%emt 0:01:18]} Rxe1+ {[%emt 0:00:28]} 26. Nxe1 {[%emt 0:00:32]} Re8 {[%emt 0:00:03]} 27. Nf3 {[%emt 0:00:20]} Re2 {[%emt 0:00:22]} 28. Re1 {[%emt 0:02:01]} Rxc2 {[%emt 0:00:38]} 29. Qb5 {[%emt 0:02:24]} h6 {[%emt 0:00:10]} 30. a4 {[%emt 0:00:18]} Qf4 {[%emt 0:00:06]} 31. Re3 {[%emt 0:00:22]} Qxc4 {[%emt 0:00:09]} 32. Qd7 {[%emt 0:00:58]} Bf4 {[%emt 0:00:04]} 33. Bxf6 0-1